lending/lending_fUSD_20250808
["ID","MTS","AMOUNT","RATE_DAILY","PERIOD"]
[377927414,1754613259215,-4211.54,0.000367,7]
[377927415,1754613259226,-222.66,0.000367,7]
[377927416,1754613259236,-17573.5,0.000367,7]
[377927417,1754613259246,-298.44,0.000367,7]
[377927418,1754613259256,-351.4,0.000367,7]
[377927419,1754613259266,-223.86,0.000367,7]
[377927420,1754613259275,-1534.96,0.00036712,120]
[377927421,1754613259285,-152.81,0.00036766,60]
[377927422,1754613259295,-230.77,0.000368,60]
[377927423,1754613259305,-2000.0,0.00036848,31]
[377927424,1754613259315,-1000.0,0.00036849,120]
[377927425,1754613259325,-3499.17638947,0.0003686,2]
[377927426,1754613259335,-152.81,0.00036866,60]
[377927427,1754613259345,-1542.43381381,0.00036888,60]
[377927428,1754613259356,-341.35,0.000369,7]
[377927429,1754613259366,-3509.23,0.000369,7]
[377927430,1754613259376,-4687.97,0.000369,7]
[377927431,1754613259385,-1705.29521869,0.000369,120]
[377927432,1754613259395,-295.19,0.000369,120]
[377927433,1754613259405,-13810.54458472,0.0003691,2]
[377927434,1754613259415,-150.0,0.0003694,2]
[377927435,1754613259424,-152.81,0.00036966,60]
[377927436,1754613259435,-637.67,0.00036974,60]
[377927437,1754613259445,-1000.0,0.00037,30]
[377927438,1754613259454,-6726302.25428747,0.00037,3]
[377927439,1754613260347,-523.66000001,0.00037,3]
[377927440,1754613260368,-1403.7790728,0.00037,3]
[377927441,1754613260410,-889.70187298,0.00019726,2]
[377927442,1754613260430,-401.91812702,0.00019726,2]
[377927443,1754613260447,-168.47411569,0.0002,2]
[377927444,1754613260468,-465.65588431,0.0002,2]
[377927445,1754613260483,-497.36177872,0.00023287,2]
[377927446,1754613260503,-1888.0,0.00023287,2]
[377927447,1754613260941,-504.68910999,0.0001899,2]
[377927448,1754613260951,-849.14,0.00019178,2]
[377927449,1754613260962,-500.0,0.00019438,2]
[377927450,1754613260972,-500.0,0.00019451,2]
[377927451,1754613260983,-500.0,0.00019451,2]
[377927452,1754613260993,-361.92401874,0.00019451,2]
[377927453,1754613261003,-199.02477565,0.0002,2]
[377927454,1754613261015,-1092.59522435,0.0002,2]
[377927455,1754613261026,-634.13,0.00020273,2]
[377927456,1754613261036,-1291.62,0.00020273,2]
[377927457,1754613261047,-634.13,0.00020547,2]
[377927458,1754613261058,-874.37,0.00020547,2]
[377927459,1754613261068,-1122.39736785,0.00020547,2]
[377927460,1754613261079,-670.78263215,0.00020547,2]
[377927461,1754613261091,-400.0,0.00020821,2]
[377927462,1754613261102,-100.71736785,0.00020821,2]
[377927463,1754613261115,-299.28263215,0.00020821,2]
[377927464,1754613261126,-634.13,0.00020821,2]
[377927465,1754613261137,-874.37,0.00020821,2]
[377927466,1754613261150,-400.0,0.00021095,2]
[377927467,1754613261162,-400.0,0.00021095,2]
[377927468,1754613261173,-400.0,0.00021095,2]
[377927469,1754613261184,-634.13,0.00021095,2]
[377927470,1754613261196,-874.37,0.00021095,2]
[377927471,1754613261208,-400.0,0.00021369,2]
[377927472,1754613261219,-400.0,0.00021369,2]
[377927473,1754613261230,-400.0,0.00021369,2]
[377927474,1754613261241,-634.13,0.00021369,2]
[377927475,1754613261251,-874.37,0.00021369,2]
[377927476,1754613261262,-400.0,0.00021643,2]
[377927477,1754613261274,-400.0,0.00021643,2]
[377927478,1754613261284,-400.0,0.00021643,2]
[377927479,1754613261295,-634.13,0.00021643,2]
[377927480,1754613261304,-874.37,0.00021643,2]
[377927481,1754613261315,-400.0,0.00021917,2]
[377927482,1754613261326,-400.0,0.00021917,2]
[377927483,1754613261337,-634.13,0.00021917,2]
[377927484,1754613261347,-874.37,0.00021917,2]
[377927485,1754613261358,-400.0,0.00022191,2]
[377927486,1754613261367,-400.0,0.00022191,2]
[377927487,1754613261377,-476.00796612,0.00022465,2]
[377927488,1754613261387,-184.51822128,0.00023287,2]
[377927489,1754613261397,-492.44,0.00023287,2]
[377927490,1754613261407,-2569.88,0.00023561,2]
[377927491,1754613261416,-492.44,0.00023561,2]
[377927492,1754613261426,-707.51,0.00023835,2]
[377927493,1754613261435,-492.44,0.00023835,2]
[377927494,1754613261447,-2569.88,0.00023835,2]
[377927495,1754613261457,-2393.10118045,0.00024096,2]
[377927496,1754613261469,-600.06502972,0.00024096,2]
[377927497,1754613261487,-424.67378983,0.00024096,2]
[377927498,1754613261497,-707.51,0.00024109,2]
[377927499,1754613261507,-1525.3,0.00024109,2]
[377927500,1754613261516,-492.44,0.00024109,2]
[377927501,1754613261527,-2569.88,0.00024109,2]
[377927502,1754613261536,-3417.84,0.0002437,2]
[377927503,1754613261547,-707.51,0.00024383,2]
[377927504,1754613261558,-1525.3,0.00024383,2]
[377927505,1754613261570,-492.44,0.00024383,2]
[377927506,1754613261581,-3417.84,0.00024644,2]
[377927507,1754613261591,-707.51,0.00024657,2]
[377927508,1754613261601,-1525.3,0.00024657,2]
[377927509,1754613261611,-2506.85288435,0.00024657,2]
[377927510,1754613262082,-155.01081481,0.0001891,2]
[377927511,1754613262093,-504.68910999,0.0001899,2]
[377927512,1754613262102,-504.68910999,0.0001899,2]
[377927513,1754613262113,-793.11,0.00019178,2]
[377927514,1754613262125,-849.14,0.00019452,2]
[377927515,1754613262135,-793.11,0.00019452,2]
[377927516,1754613262146,-849.14,0.00019726,2]
[377927517,1754613262156,-793.11,0.00019726,2]
[377927518,1754613262166,-849.14,0.0002,2]
[377927519,1754613262176,-793.11,0.0002,2]
[377927520,1754613262187,-849.14,0.00020273,2]
[377927521,1754613262198,-793.11,0.00020273,2]
[377927522,1754613262208,-1291.62,0.00020547,2]
[377927523,1754613262218,-494.56454448,0.00020821,2]
[377927524,1754613262295,-793.11,0.00020547,2]
[377927525,1754613262305,-797.05545552,0.00020821,2]
[377927526,1754613262315,-497.02675621,0.00020821,2]
[377927527,1754613264160,-500.0,0.00019177,2]
[377927528,1754613264172,-400.0,0.00019178,2]
[377927529,1754613264183,-148.81213226,0.00019178,2]
[377927530,1754613264195,-251.18786774,0.00019178,2]
[377927531,1754613264204,-400.0,0.00019452,2]
[377927532,1754613264214,-215.81452823,0.00019452,2]
[377927533,1754613264224,-500.0,0.00019725,3]
[377927534,1754613264235,-500.0,0.00020273,4]
[377927535,1754613264244,-849.14,0.00020547,2]
[377927536,1754613264254,-1296.15324379,0.00020821,2]
[377927537,1754613264263,-793.11,0.00020821,2]
[377927538,1754613264272,-500.0,0.00020821,5]
[377927539,1754613264282,-1793.18,0.00021095,2]
[377927540,1754613264292,-1291.62,0.00021095,2]
[377927541,1754613264301,-793.11,0.00021095,2]
[377927542,1754613264310,-1793.18,0.00021369,2]
[377927543,1754613264320,-1291.62,0.00021369,2]
[377927544,1754613264329,-793.11,0.00021369,2]
[377927545,1754613264338,-500.0,0.00021369,6]
[377927546,1754613264347,-1793.18,0.00021643,2]
[377927547,1754613264357,-1291.62,0.00021643,2]
[377927548,1754613264367,-1793.18,0.00021917,2]
[377927549,1754613264377,-400.0,0.00021917,2]
[377927550,1754613264386,-1291.62,0.00021917,2]
[377927551,1754613264396,-500.0,0.00021917,7]
[377927552,1754613264405,-874.37,0.00022191,2]
[377927553,1754613264414,-634.13,0.00022191,2]
[377927554,1754613264424,-400.0,0.00022191,2]
[377927555,1754613264434,-1793.18,0.00022191,2]
[377927556,1754613264443,-1291.62,0.00022191,2]
[377927557,1754613264452,-874.37,0.00022465,2]
[377927558,1754613264462,-634.13,0.00022465,2]
[377927559,1754613264471,-448.4163416,0.00022465,2]
[377927560,1754613264484,-1793.18,0.00022465,2]
[377927561,1754613264494,-400.0,0.00022465,2]
[377927562,1754613264504,-1291.62,0.00022465,2]
[377927563,1754613264514,-500.0,0.00022465,8]
[377927564,1754613264524,-874.37,0.00022739,2]
[377927565,1754613264534,-634.13,0.00022739,2]
[377927566,1754613264544,-400.0,0.00022739,2]
[377927567,1754613264553,-1793.18,0.00022739,2]
[377927568,1754613264563,-165.55,0.00022947,2]
[377927569,1754613264575,-874.37,0.00023013,2]
[377927570,1754613264585,-634.13,0.00023013,2]
[377927571,1754613264595,-400.0,0.00023013,2]
[377927572,1754613264605,-350.41165258,0.00023013,9]
[377927573,1754613264615,-874.37,0.00023287,2]
[377927574,1754613264624,-634.13,0.00023287,2]
[377927575,1754613264634,-400.0,0.00023287,2]
[377927576,1754613264643,-874.37,0.00023561,2]
[377927577,1754613264655,-634.13,0.00023561,2]
[377927578,1754613264666,-400.0,0.00023561,2]
[377927579,1754613264677,-874.37,0.00023835,2]
[377927580,1754613264687,-634.13,0.00023835,2]
[377927581,1754613264697,-874.37,0.00024109,2]
[377927582,1754613264707,-634.13,0.00024109,2]
[377927583,1754613264716,-2569.88,0.00024383,2]
[377927584,1754613264727,-874.37,0.00024383,2]
[377927585,1754613264738,-634.13,0.00024383,2]
[377927586,1754613264747,-4392.30656232,0.000245,2]
[377927587,1754613264757,-4392.30656232,0.000245,2]
[377927588,1754613264767,-3182.09711565,0.00024657,2]
[377927589,1754613264778,-492.44,0.00024657,2]
[377927590,1754613264789,-2569.88,0.00024657,2]
[377927591,1754613264799,-874.37,0.00024657,2]
[377927592,1754613264809,-634.13,0.00024657,2]
[377927593,1754613264819,-3417.84,0.00024918,2]
[377927594,1754613264830,-480.51,0.00024931,2]
[377927595,1754613264840,-707.51,0.00024931,2]
[377927596,1754613264850,-1525.3,0.00024931,2]
[377927597,1754613264859,-5688.95,0.00024931,2]
[377927598,1754613264869,-492.44,0.00024931,2]
[377927599,1754613264879,-2569.88,0.00024931,2]
[377927600,1754613264898,-874.37,0.00024931,2]
[377927601,1754613264910,-634.13,0.00024931,2]
[377927602,1754613264921,-3417.84,0.00025192,2]
[377927603,1754613264932,-480.51,0.00025205,2]
[377927604,1754613264942,-1525.3,0.00025205,2]
[377927605,1754613264951,-5688.95,0.00025205,2]
[377927606,1754613264960,-492.44,0.00025205,2]
[377927607,1754613264971,-707.51,0.00025205,2]
[377927608,1754613264982,-2569.88,0.00025205,2]
[377927609,1754613264992,-874.37,0.00025205,2]
[377927610,1754613265002,-634.13,0.00025205,2]
[377927611,1754613265011,-3417.84,0.00025466,2]
[377927612,1754613265021,-480.60320615,0.00025479,2]
[377927613,1754613265031,-1525.44598597,0.00025479,2]
[377927614,1754613265042,-492.52697512,0.00025479,2]
[377927615,1754613265051,-5688.98611281,0.00025479,2]
[377927616,1754613265061,-707.64477541,0.00025479,2]
[377927617,1754613265070,-2569.90188383,0.00025479,2]
[377927618,1754613265080,-874.40792856,0.00025479,2]
[377927619,1754613265089,-634.3277013,0.00025479,2]
[377927620,1754613265099,-3418.011208,0.00025739,2]
[377927621,1754613265109,-180.07339124,0.000274,2]
[377927622,1754613265118,-116246.47695741,0.00037,3]
[377927623,1754613265166,-5686.89487166,0.00037,3]
[377927624,1754613265205,-849.14,0.00020821,2]
[377927625,1754613265215,-793.11,0.00021643,2]
[377927626,1754613265227,-1793.18,0.00023013,2]
[377927627,1754613265238,-10883.43012036,0.00037,3]
[377927628,1754613265269,-1234.8647997,0.00037,3]
[377927629,1754613265293,-1793.18,0.00023287,2]
[377927630,1754613265303,-115246.81999999,0.00037,3]
[377927631,1754613293420,150.0,0.00027592,120]
[377927632,1754613331295,150.0,0.00029838,120]
[377927636,1754613706600,173.68,0.00015068,2]
[377927637,1754613707157,173.68,0.00016693,2]
[377927644,1754613964633,-238.11660939,0.00018114,4]
[377927645,1754613968861,-161.88339061,0.00018114,4]
[377927646,1754613968884,-146.82923639,0.00018168,4]
[377927647,1754613971394,-176.87197275,0.00018168,4]
[377927648,1754613977313,-270.71920357,0.00018168,4]
[377927649,1754613981896,-250.0,0.00018168,4]
[377927650,1754613987015,-155.57958729,0.00018168,4]
[377927701,1754614077490,-154.08,0.00018122,2]
[377927702,1754614079608,-372.84645783,0.00018122,2]
[377927703,1754614141726,163.0,0.00018,2]
[377927704,1754614142772,163.0,0.00018,2]
[377927705,1754614161799,163.0,0.000301,120]
[377927706,1754614163133,163.0,0.000301,120]
[377927708,1754614182362,666.0,0.00017961,3]
[377927710,1754614205126,-250.23079384,0.00018067,4]
[377927711,1754614207708,-250.0,0.00018041,2]
[377927712,1754614207734,-135.64865764,0.00018067,4]
[377927713,1754614208966,369.0,0.00018006,2]
[377927714,1754614210170,-338.84904664,0.00018067,4]
[377927715,1754614215398,-186.20716482,0.00018067,4]
[377927716,1754614217472,-89.06433706,0.00018067,4]
[377927717,1754614217505,-110.93566294,0.00018092,2]
[377927718,1754614219787,-39.06433706,0.00018092,2]
[377927719,1754614219809,-378.05852672,0.00018146,4]
[377927720,1754614223749,-240.20819004,0.00018146,4]
[377927721,1754614226029,-210.08099618,0.00018146,4]
[377927722,1754614228514,-171.65228706,0.00018146,4]
[377927723,1754614228536,-73.98268092,0.00018153,2]
[377927724,1754614230682,-162.81929787,0.00018153,2]
[377927761,1754614232223,-321.51115192,0.00018153,2]
[377927779,1754614232333,-533.02686929,0.00018153,2]
[377927783,1754614232344,-300.0,0.00018221,2]
[377927786,1754614232354,-300.0,0.00018221,2]
[377927789,1754614232365,-813.7545116,0.00018221,2]
[377927792,1754614232377,-386.2454884,0.00018221,2]
[377927795,1754614232388,-150.0,0.00018222,2]
[377927797,1754614232398,-150.0,0.00018222,2]
[377927799,1754614232408,-150.0,0.00018222,2]
[377927801,1754614232419,-150.0,0.00018222,2]
[377927804,1754614232429,-150.0,0.00018222,2]
[377927806,1754614232439,-150.0,0.00018222,2]
[377927808,1754614232449,-150.0,0.00018222,2]
[377927810,1754614232459,-150.0,0.00018222,2]
[377927812,1754614232470,-150.0,0.00018222,2]
[377927814,1754614232479,-150.0,0.00018222,2]
[377927815,1754614232490,-150.0,0.00018222,2]
[377927817,1754614232500,-182.1545116,0.00018222,2]
[377927820,1754614232516,-714.67466043,0.00018222,2]
[377927822,1754614232526,-150.0,0.00018243,2]
[377927824,1754614232536,-254.34443973,0.00018263,2]
[377927826,1754614232548,-5469.41556027,0.00018263,2]
[377927828,1754614232559,-158.4,0.00018274,2]
[377927830,1754614232569,-150.0,0.00018277,2]
[377927832,1754614232580,-175.0,0.00018311,7]
[377927835,1754614232590,-173.68,0.00018317,2]
[377927836,1754614232600,-167.12,0.00018318,2]
[377927838,1754614232610,-1000.0,0.00018328,2]
[377927840,1754614232620,-500.0,0.00018492,3]
[377927842,1754614232630,-2500.0,0.000189,3]
[377927843,1754614232640,-154.08,0.00019078,2]
[377927845,1754614232650,-1367.07,0.000191,2]
[377927846,1754614232660,-500.0,0.00019166,2]
[377927847,1754614232669,-500.0,0.00019166,2]
[377927848,1754614232680,-622.89,0.00019168,3]
[377927849,1754614232690,-500.0,0.00019173,2]
[377927850,1754614232701,-400.0,0.00019178,2]
[377927851,1754614232711,-467.43,0.00019178,2]
[377927852,1754614232722,-400.0,0.00019178,2]
[377927853,1754614232732,-400.0,0.00019178,2]
[377927854,1754614232748,-306.46303093,0.00019178,2]
[377927855,1754614232762,-93.53696907,0.00019178,2]
[377927856,1754614232772,-400.0,0.00019178,2]
[377927857,1754614232783,-518.35,0.00019178,2]
[377927858,1754614232794,-400.0,0.00019178,2]
[377927859,1754614232804,-400.0,0.00019178,2]
[377927860,1754614232814,-398.19943742,0.00019178,2]
[377927861,1754614232829,-1.80056258,0.00019178,2]
[377927862,1754614232846,-578.02537457,0.00019178,2]
[377927863,1754614232869,-779.55462543,0.00019178,2]
[377927864,1754614232879,-400.0,0.00019178,2]
[377927865,1754614232890,-400.0,0.00019178,2]
[377927866,1754614232900,-400.0,0.00019178,2]
[377927867,1754614232911,-1208.7,0.00019178,2]
[377927868,1754614232921,-400.0,0.00019178,2]
[377927869,1754614232931,-571.32,0.00019178,2]
[377927870,1754614232941,-400.0,0.00019178,2]
[377927871,1754614232951,-400.0,0.00019178,2]
[377927872,1754614232961,-722.94,0.00019178,2]
[377927873,1754614232971,-400.0,0.00019178,2]
[377927874,1754614232981,-400.0,0.00019178,2]
[377927875,1754614232995,-400.0,0.00019178,2]
[377927876,1754614233007,-400.0,0.00019178,2]
[377927877,1754614233017,-440.35,0.00019178,2]
[377927878,1754614233027,-2803.03,0.00019178,2]
[377927879,1754614233038,-414.22186256,0.00019178,2]
[377927880,1754614233048,-400.0,0.00019178,2]
[377927881,1754614233059,-1112.97,0.00019178,2]
[377927882,1754614233068,-1702.91,0.00019178,2]
[377927883,1754614233078,-400.0,0.00019178,2]
[377927884,1754614233089,-400.0,0.00019178,2]
[377927885,1754614233099,-563.63,0.00019178,2]
[377927886,1754614233109,-400.0,0.00019178,2]
[377927887,1754614233119,-535.07,0.00019178,2]
[377927888,1754614233129,-400.0,0.00019178,2]
[377927889,1754614233141,-400.0,0.00019178,2]
[377927890,1754614233151,-798.53,0.00019178,2]
[377927891,1754614233161,-636.33,0.00019178,2]
[377927892,1754614233171,-400.0,0.00019178,2]
[377927893,1754614233181,-400.0,0.00019178,2]
[377927894,1754614233192,-400.0,0.00019178,2]
[377927895,1754614233202,-501.71,0.00019178,2]
[377927896,1754614233602,-1301.51,0.00019178,2]
[377927897,1754614233613,-400.0,0.00019178,2]
[377927898,1754614233623,-400.0,0.00019178,2]
[377927899,1754614233635,-400.0,0.00019178,2]
[377927900,1754614233645,-400.0,0.00019178,2]
[377927901,1754614233655,-400.0,0.00019178,2]
[377927902,1754614233666,-400.0,0.00019178,2]
[377927903,1754614233677,-400.0,0.00019178,2]
[377927904,1754614233689,-500.0,0.00019178,2]
[377927905,1754614233699,-500.0,0.00019178,2]
[377927906,1754614233709,-400.0,0.00019178,2]
[377927907,1754614233720,-400.0,0.00019178,2]
[377927908,1754614233731,-648.77,0.00019178,2]
[377927909,1754614233743,-400.0,0.00019178,2]
[377927910,1754614233754,-1110.84,0.00019178,2]
[377927911,1754614233765,-400.0,0.00019178,2]
[377927912,1754614233776,-1082.24,0.00019178,2]
[377927913,1754614233788,-672.61,0.00019178,2]
[377927914,1754614233798,-400.0,0.00019178,2]
[377927915,1754614233808,-400.0,0.00019178,2]
[377927916,1754614233818,-2850.84,0.00019178,2]
[377927917,1754614233828,-1783.35,0.00019178,2]
[377927918,1754614233838,-819.83,0.00019178,2]
[377927919,1754614233847,-400.0,0.00019178,2]
[377927920,1754614233858,-400.0,0.00019178,2]
[377927921,1754614233868,-400.0,0.00019178,2]
[377927922,1754614233878,-400.0,0.00019178,2]
[377927923,1754614233888,-400.0,0.00019178,2]
[377927924,1754614233899,-400.0,0.00019178,2]
[377927925,1754614233909,-400.0,0.00019178,2]
[377927926,1754614233920,-400.0,0.00019178,2]
[377927927,1754614233930,-520.52274079,0.00019178,2]
[377927928,1754614233945,-254.29725921,0.00019178,2]
[377927929,1754614233955,-400.0,0.00019178,2]
[377927930,1754614233965,-209.94889877,0.00019178,2]
[377927931,1754614233977,-190.05110123,0.00019178,2]
[377927932,1754614233990,-400.0,0.00019178,2]
[377927933,1754614234000,-400.0,0.00019178,2]
[377927934,1754614234011,-400.0,0.00019178,2]
[377927935,1754614234021,-400.0,0.00019178,2]
[377927936,1754614234031,-400.0,0.00019178,2]
[377927937,1754614234041,-637.04,0.00019178,2]
[377927938,1754614234051,-598.19426165,0.00019178,2]
[377927939,1754614234072,-1274.55573835,0.00019178,2]
[377927940,1754614234082,-90.49396648,0.00019178,2]
[377927941,1754614234095,-718.88603352,0.00019178,2]
[377927942,1754614234106,-400.0,0.00019178,2]
[377927943,1754614234116,-739.13,0.00019178,2]
[377927944,1754614234126,-400.0,0.00019178,2]
[377927945,1754614234137,-400.0,0.00019178,2]
[377927946,1754614234150,-518.6,0.00019178,2]
[377927947,1754614234161,-279.10409301,0.00019178,2]
[377927948,1754614234171,-400.0,0.00019178,2]
[377927949,1754614234183,-400.0,0.00019178,2]
[377927950,1754614234196,-400.0,0.00019178,2]
[377927951,1754614234206,-400.0,0.00019178,2]
[377927952,1754614234216,-400.0,0.00019178,2]
[377927953,1754614234226,-400.0,0.00019178,2]
[377927954,1754614234236,-400.0,0.00019178,2]
[377927955,1754614234247,-400.0,0.00019178,2]
[377927956,1754614234257,-400.0,0.00019178,2]
[377927957,1754614234267,-400.0,0.00019178,2]
[377927958,1754614234278,-400.0,0.00019178,2]
[377927959,1754614234288,-400.0,0.00019178,2]
[377927960,1754614234298,-400.0,0.00019178,2]
[377927961,1754614234307,-400.0,0.00019178,2]
[377927962,1754614234318,-221.14848976,0.00019178,2]
[377927963,1754614234330,-400.0,0.00019178,2]
[377927964,1754614234340,-400.0,0.00019178,2]
[377927965,1754614234351,-400.0,0.00019178,2]
[377927966,1754614234362,-400.0,0.00019178,2]
[377927967,1754614234373,-400.0,0.00019178,2]
[377927968,1754614234384,-400.0,0.00019178,2]
[377927969,1754614234395,-400.0,0.00019178,2]
[377927970,1754614234406,-400.0,0.00019178,2]
[377927971,1754614234417,-400.0,0.00019178,2]
[377927972,1754614234427,-400.0,0.00019178,2]
[377927973,1754614234437,-400.0,0.00019178,2]
[377927974,1754614234447,-688.92,0.00019178,2]
[377927975,1754614234457,-400.0,0.00019178,2]
[377927976,1754614234466,-400.0,0.00019178,2]
[377927977,1754614234477,-459.16,0.00019178,2]
[377927978,1754614234487,-724.63,0.00019178,2]
[377927979,1754614234499,-400.0,0.00019178,2]
[377927980,1754614234508,-400.0,0.00019178,2]
[377927981,1754614234518,-400.0,0.00019178,2]
[377927982,1754614234528,-400.0,0.00019178,2]
[377927983,1754614234538,-400.0,0.00019178,2]
[377927984,1754614234548,-400.0,0.00019178,2]
[377927985,1754614234558,-2478.01,0.00019178,2]
[377927986,1754614234567,-1838.62,0.00019178,2]
[377927987,1754614234577,-400.0,0.00019178,2]
[377927988,1754614234587,-633.66,0.00019178,2]
[377927989,1754614234597,-400.0,0.00019178,2]
[377927990,1754614234607,-400.0,0.00019178,2]
[377927991,1754614234617,-400.0,0.00019178,2]
[377927992,1754614234626,-400.0,0.00019178,2]
[377927993,1754614234636,-2866.87,0.00019178,2]
[377927994,1754614234646,-400.0,0.00019178,2]
[377927995,1754614234656,-407.14675561,0.00019178,2]
[377927996,1754614234666,-400.0,0.00019178,2]
[377927997,1754614234676,-995.05,0.00019178,2]
[377927998,1754614234686,-400.0,0.00019178,2]
[377927999,1754614234696,-400.0,0.00019178,2]
[377928000,1754614234705,-569.3,0.00019178,2]
[377928001,1754614234715,-400.0,0.00019178,2]
[377928002,1754614234724,-627.88,0.00019178,2]
[377928003,1754614234734,-400.0,0.00019178,2]
[377928004,1754614234745,-400.0,0.00019178,2]
[377928005,1754614234755,-400.0,0.00019178,2]
[377928006,1754614234764,-230.4707323,0.00019178,2]
[377928007,1754614234773,-410.48706716,0.00019178,2]
[377928008,1754614234783,-1915.69,0.00019178,2]
[377928009,1754614234793,-400.0,0.00019178,2]
[377928010,1754614234802,-400.0,0.00019178,2]
[377928011,1754614234812,-400.0,0.00019178,2]
[377928012,1754614234821,-1024.44,0.00019178,2]
[377928013,1754614234831,-2246.64,0.00019178,2]
[377928014,1754614234840,-452.77,0.00019178,2]
[377928015,1754614234849,-755.68,0.00019178,2]
[377928016,1754614234859,-400.0,0.00019178,2]
[377928017,1754614234869,-400.0,0.00019178,2]
[377928018,1754614234878,-400.0,0.00019178,2]
[377928019,1754614234888,-400.0,0.00019178,2]
[377928020,1754614234898,-1000.0,0.00019178,2]
[377928021,1754614234908,-150.21,0.00019178,2]
[377928022,1754614234918,-150.0,0.00019234,4]
[377928023,1754614234927,-168.88319221,0.00019352,2]
[377928024,1754614234937,-408.5712,0.00019352,2]
[377928025,1754614234946,-548.7524,0.00019352,2]
[377928026,1754614234956,-2500.0,0.00019352,2]
[377928027,1754614234966,-1000.0,0.00019352,2]
[377928028,1754614234976,-1363.79,0.00019442,2]
[377928029,1754614234985,-500.0,0.0001945,2]
[377928030,1754614234997,-500.0,0.0001945,2]
[377928031,1754614235009,-261.50678163,0.0001945,2]
[377928032,1754614235018,-400.0,0.00019451,2]
[377928033,1754614235028,-400.0,0.00019451,2]
[377928034,1754614235038,-400.0,0.00019451,2]
[377928035,1754614235047,-649.34,0.00019451,2]
[377928036,1754614235057,-412.44,0.00019451,2]
[377928037,1754614235067,-1496.19,0.00019451,2]
[377928038,1754614235076,-400.0,0.00019451,2]
[377928039,1754614235086,-400.0,0.00019451,2]
[377928040,1754614235095,-400.0,0.00019451,2]
[377928041,1754614235105,-400.0,0.00019451,2]
[377928042,1754614235115,-1160.41,0.00019451,2]
[377928043,1754614235125,-502.75,0.00019451,2]
[377928044,1754614235134,-400.0,0.00019451,2]
[377928045,1754614235148,-1559.58,0.00019451,2]
[377928046,1754614235158,-738.48,0.00019451,2]
[377928047,1754614235168,-1144.25,0.00019451,2]
[377928048,1754614235178,-1207.97,0.00019451,2]
[377928049,1754614235190,-400.0,0.00019451,2]
[377928050,1754614235200,-400.0,0.00019451,2]
[377928051,1754614235210,-400.0,0.00019451,2]
[377928052,1754614235220,-400.0,0.00019451,2]
[377928053,1754614235230,-400.0,0.00019451,2]
[377928054,1754614235242,-500.0,0.00019451,2]
[377928055,1754614235252,-3096.84,0.00019451,2]
[377928056,1754614235262,-400.0,0.00019451,2]
[377928057,1754614235272,-400.0,0.00019451,2]
[377928058,1754614235281,-400.0,0.00019451,2]
[377928059,1754614235291,-400.0,0.00019451,2]
[377928060,1754614235301,-400.0,0.00019451,2]
[377928061,1754614235311,-400.0,0.00019451,2]
[377928062,1754614235321,-400.0,0.00019451,2]
[377928063,1754614235330,-400.0,0.00019451,2]